fUSD/lending_fUSD_20240218
["ID","MTS","AMOUNT","RATE_DAILY","PERIOD"]
[314374024,1708243842548,-500.0,0.00036274,2]
[314374025,1708243842557,-500.0,0.00036274,2]
[314374026,1708243842566,-500.0,0.00036274,2]
[314374027,1708243842575,-500.0,0.00036274,2]
[314374028,1708243842585,-500.0,0.00036274,2]
[314374029,1708243842595,-500.0,0.00036274,2]
[314374030,1708243842604,-544.28705913,0.00036274,2]
[314374031,1708243842613,-500.0,0.00036274,2]
[314374032,1708243842622,-500.0,0.00036274,2]
[314374033,1708243842632,-500.0,0.00036274,2]
[314374034,1708243842641,-500.0,0.00036274,2]
[314374035,1708243842650,-500.0,0.00036274,2]
[314374036,1708243842659,-500.0,0.00036274,2]
[314374037,1708243842668,-500.0,0.00036274,2]
[314374038,1708243842678,-1000.0,0.00036274,7]
[314374039,1708243842687,-500.0,0.00036274,2]
[314374040,1708243842697,-500.0,0.00036274,2]
[314374042,1708243842706,-2671.32,0.00036274,2]
[314374044,1708243842715,-500.0,0.00036274,2]
[314374046,1708243842724,-1250.83,0.00036274,2]
[314374048,1708243842733,-500.0,0.00036274,2]
[314374050,1708243842742,-500.0,0.00036274,2]
[314374052,1708243842751,-500.0,0.00036274,2]
[314374054,1708243842760,-437.98918361,0.00036274,2]
[314374056,1708243842768,-500.0,0.00036274,2]
[314374058,1708243842778,-500.0,0.00036274,2]
[314374060,1708243842787,-500.0,0.00036274,2]
[314374061,1708243842796,-500.0,0.00036274,2]
[314374063,1708243842805,-500.0,0.00036274,2]
[314374065,1708243842814,-500.0,0.00036274,2]
[314374067,1708243842824,-500.0,0.00036274,2]
[314374069,1708243842832,-500.0,0.00036274,2]
[314374070,1708243842842,-500.0,0.00036274,2]
[314374071,1708243842851,-500.0,0.00036274,2]
[314374072,1708243842860,-500.0,0.00036274,2]
[314374073,1708243842870,-500.0,0.00036274,2]
[314374074,1708243842879,-500.0,0.00036274,2]
[314374075,1708243842889,-2424.1,0.00036274,2]
[314374076,1708243842898,-500.0,0.00036274,2]
[314374077,1708243842907,-500.0,0.00036274,2]
[314374078,1708243842916,-552.58645142,0.00036274,2]
[314374079,1708243842926,-500.0,0.00036274,2]
[314374080,1708243842936,-500.0,0.00036274,2]
[314374081,1708243842945,-500.0,0.00036274,2]
[314374082,1708243842954,-1484.88,0.00036274,2]
[314374083,1708243842963,-2064.08,0.00036274,2]
[314374084,1708243842973,-500.0,0.00036274,2]
[314374085,1708243842982,-500.0,0.00036274,2]
[314374086,1708243842991,-500.0,0.00036274,2]
[314374087,1708243843001,-557.06736994,0.00036274,2]
[314374088,1708243843010,-500.0,0.00036274,2]
[314374089,1708243843020,-2288.07,0.00036274,2]
[314374090,1708243843029,-525.33427227,0.00036274,2]
[314374091,1708243843038,-1219.25,0.00036274,2]
[314374092,1708243843048,-500.0,0.00036274,2]
[314374093,1708243843057,-500.0,0.00036274,2]
[314374094,1708243843067,-181.27034435,0.00036274,2]
[314374095,1708243843076,-500.0,0.00036274,2]
[314374096,1708243843085,-500.0,0.00036274,2]
[314374097,1708243843095,-500.0,0.00036274,2]
[314374098,1708243843104,-500.0,0.00036274,2]
[314374099,1708243843113,-500.0,0.00036274,2]
[314374100,1708243843123,-500.0,0.00036274,2]
[314374101,1708243843132,-575.29699493,0.00036274,2]
[314374102,1708243843141,-1000.0,0.00036274,7]
[314374103,1708243843151,-500.0,0.00036274,2]
[314374104,1708243843160,-500.0,0.00036274,2]
[314374105,1708243843169,-849.85,0.00036274,2]
[314374106,1708243843179,-500.0,0.00036274,2]
[314374107,1708243843191,-500.0,0.00036274,2]
[314374108,1708243843200,-500.0,0.00036274,2]
[314374109,1708243843209,-500.0,0.00036274,2]
[314374110,1708243843218,-200000.0,0.00036275,14]
[314374111,1708243843228,-490.66,0.00036296,2]
[314374112,1708243843238,-150.0,0.00036338,2]
[314374113,1708243843247,-7842.58069049,0.00036389,2]
[314374114,1708243843256,-7842.58069047,0.00036389,2]
[314374115,1708243843267,-1949.0,0.000364,2]
[314374116,1708243843280,-150.0,0.00036401,2]
[314374117,1708243843289,-320.34,0.00036439,2]
[314374118,1708243843299,-150.0,0.00036448,2]
[314374119,1708243843308,-490.66,0.00036476,2]
[314374120,1708243843317,-150.0,0.00036484,2]
[314374121,1708243843326,-150.0,0.0003649,2]
[314374122,1708243843337,-150.0,0.00036492,2]
[314374123,1708243843346,-213.0,0.000365,10]
[314374124,1708243843356,-150.0,0.00036515,2]
[314374125,1708243843365,-155.89466373,0.0003653,2]
[314374126,1708243843374,-166.32,0.00036531,2]
[314374127,1708243843384,-150.0,0.00036559,2]
[314374128,1708243843393,-150.0,0.00036582,2]
[314374129,1708243843402,-500.0,0.00036595,2]
[314374130,1708243843411,-500.0,0.00036595,2]
[314374131,1708243843419,-500.0,0.00036595,2]
[314374132,1708243843429,-751.05,0.00036595,2]
[314374133,1708243843438,-500.0,0.00036595,2]
[314374134,1708243843447,-8400.67,0.00036595,2]
[314374135,1708243843456,-500.0,0.00036595,2]
[314374136,1708243843465,-500.0,0.00036595,2]
[314374137,1708243843474,-500.0,0.00036595,2]
[314374138,1708243843483,-500.0,0.00036595,2]
[314374139,1708243843492,-500.0,0.00036595,2]
[314374140,1708243843502,-5000.0,0.00036596,3]
[314374141,1708243843511,-547.83240624,0.000366,2]
[314374142,1708243843520,-388.29820233,0.00036603,2]
[314374143,1708243843529,-150.0,0.00036635,2]
[314374144,1708243843538,-150.0,0.00036644,2]
[314374145,1708243843548,-150.0,0.00036649,2]
[314374146,1708243843556,-490.66,0.00036656,2]
[314374147,1708243843566,-1500.0,0.00036664,2]
[314374148,1708243843575,-150.0,0.00036671,2]
[314374149,1708243843585,-150.0,0.00036681,2]
[314374150,1708243843595,-150.0,0.00036687,2]
[314374151,1708243843605,-500.0,0.00036695,2]
[314374152,1708243843614,-500.0,0.00036695,2]
[314374153,1708243843623,-500.0,0.00036695,2]
[314374154,1708243843632,-500.0,0.00036695,2]
[314374155,1708243843641,-500.0,0.00036695,2]
[314374156,1708243843651,-500.0,0.00036695,2]
[314374157,1708243843660,-822.4,0.00036695,2]
[314374158,1708243843669,-1839.87,0.00036695,2]
[314374159,1708243843679,-500.0,0.00036695,2]
[314374160,1708243843688,-218.61696736,0.00036695,2]
[314374161,1708243844316,-150.0,0.00034335,2]
[314374162,1708243844326,-150.0,0.00034474,2]
[314374163,1708243844336,-150.0,0.00034528,2]
[314374164,1708243844345,-123.62293824,0.00035037,2]
[314374165,1708243844708,-2833.5835179,0.0003248,2]
[314374166,1708243844717,-167.29988813,0.00035037,2]
[314374167,1708243844726,-150.0,0.00035187,2]
[314374168,1708243844736,-150.0,0.00035447,2]
[314374169,1708243844745,-150.0,0.00035746,2]
[314374170,1708243844754,-150.0,0.00035954,2]
[314374171,1708243844763,-500.0,0.00036274,2]
[314374172,1708243844772,-615.7773921,0.00036274,2]
[314374173,1708243844782,-150.0,0.00036281,2]
[314374174,1708243844791,-150.0,0.00036572,2]
[314374175,1708243844800,-281.38303264,0.00036695,2]
[314374176,1708243844809,-500.0,0.00036695,2]
[314374177,1708243844818,-500.0,0.00036695,2]
[314374178,1708243844827,-500.0,0.00036695,2]
[314374179,1708243844836,-500.0,0.00036695,2]
[314374180,1708243844845,-500.0,0.00036695,2]
[314374181,1708243844854,-511.45,0.00036695,2]
[314374182,1708243844864,-1390.41,0.00036695,2]
[314374183,1708243844872,-644.11,0.00036695,2]
[314374184,1708243844881,-500.0,0.00036695,2]
[314374185,1708243844891,-500.0,0.00036695,2]
[314374186,1708243844899,-500.0,0.00036695,2]
[314374187,1708243844909,-500.0,0.00036695,2]
[314374188,1708243844918,-500.0,0.00036695,2]
[314374189,1708243844928,-500.0,0.00036695,2]
[314374190,1708243844937,-500.0,0.00036695,2]
[314374191,1708243844946,-500.0,0.00036695,2]
[314374192,1708243844956,-500.0,0.00036695,2]
[314374193,1708243844965,-500.0,0.00036695,2]
[314374194,1708243844975,-500.0,0.00036695,2]
[314374195,1708243844985,-642.31713541,0.00036695,2]
[314374196,1708243844994,-500.0,0.00036695,2]
[314374197,1708243845003,-500.0,0.00036695,2]
[314374198,1708243845013,-500.0,0.00036695,2]
[314374199,1708243845022,-1484.88,0.00036695,2]
[314374200,1708243845031,-500.0,0.00036695,2]
[314374201,1708243845040,-1219.25,0.00036695,2]
[314374202,1708243845050,-500.0,0.00036695,2]
[314374203,1708243845059,-500.0,0.00036695,2]
[314374204,1708243845069,-500.0,0.00036695,2]
[314374205,1708243845079,-500.0,0.00036696,2]
[314374206,1708243845087,-500.0,0.00036696,2]
[314374207,1708243845097,-500.0,0.00036696,2]
[314374208,1708243845106,-500.0,0.00036696,2]
[314374209,1708243845116,-352.86397191,0.00036696,2]
[314374210,1708243845125,-500.0,0.00036696,7]
[314374211,1708243845134,-500.0,0.00036696,2]
[314374212,1708243845143,-500.0,0.00036696,2]
[314374213,1708243845152,-500.0,0.00036696,2]
[314374214,1708243845161,-500.0,0.00036696,2]
[314374215,1708243845170,-500.0,0.00036696,2]
[314374216,1708243845183,-500.0,0.00036696,2]
[314374217,1708243845192,-500.0,0.00036696,2]
[314374218,1708243845202,-500.0,0.00036696,2]
[314374219,1708243845211,-500.0,0.00036696,2]
[314374220,1708243845220,-500.0,0.00036696,2]
[314374221,1708243845231,-500.0,0.00036696,2]
[314374222,1708243845241,-500.0,0.00036696,2]
[314374223,1708243845250,-500.0,0.00036696,2]
[314374224,1708243845260,-500.0,0.00036696,2]
[314374225,1708243845269,-500.0,0.00036696,2]
[314374227,1708243845279,-500.0,0.00036696,2]
[314374229,1708243845288,-500.0,0.00036696,2]
[314374231,1708243845297,-578.86633493,0.00036696,2]
[314374233,1708243845306,-500.0,0.00036696,2]
[314374235,1708243845315,-500.0,0.00036696,2]
[314374237,1708243845325,-500.0,0.00036696,2]
[314374239,1708243845334,-500.0,0.00036696,2]
[314374241,1708243845343,-439.07189229,0.00036696,2]
[314374243,1708243845352,-150.0,0.00036696,2]
[314374246,1708243845361,-500.0,0.00036696,2]
[314374249,1708243845371,-500.0,0.00036696,2]
[314374251,1708243845379,-500.0,0.00036696,2]
[314374253,1708243845388,-500.0,0.00036696,2]
[314374255,1708243845398,-500.0,0.00036696,2]
[314374257,1708243845407,-500.0,0.00036696,2]
[314374259,1708243845416,-500.0,0.00036696,2]
[314374261,1708243845426,-500.0,0.00036696,2]
[314374262,1708243845435,-529.55132534,0.00036696,2]
[314374263,1708243845444,-500.0,0.00036696,2]
[314374264,1708243845455,-500.0,0.00036696,2]
[314374265,1708243845464,-500.0,0.00036696,2]
[314374266,1708243845473,-500.0,0.00036696,2]
[314374267,1708243845482,-500.0,0.00036696,2]
[314374268,1708243845491,-129.16538873,0.00036696,2]
[314374269,1708243845521,-370.83461127,0.00036696,2]
[314374270,1708243845530,-500.0,0.00036696,2]
[314374271,1708243845706,-594.6637485,0.00036696,2]
[314374272,1708243845717,-164.41502032,0.00036696,2]
[314374287,1708243846033,-1196.91856538,0.00036273,2]
[314374288,1708243846042,-335.58497968,0.00036696,2]
[314374289,1708243846051,-500.0,0.00036696,2]
[314374290,1708243846060,-837.34,0.00036696,2]
[314374291,1708243846069,-500.0,0.00036696,2]
[314374292,1708243846078,-561.53574121,0.00036696,2]
[314374293,1708243846088,-500.0,0.00036696,2]
[314374294,1708243846097,-500.0,0.00036696,2]
[314374295,1708243846106,-588.16523353,0.00036696,2]
[314374296,1708243846115,-500.0,0.00036696,2]
[314374297,1708243846124,-500.0,0.00036696,2]
[314374298,1708243846134,-500.0,0.00036696,2]
[314374299,1708243846143,-558.06003556,0.00036696,2]
[314374300,1708243846153,-500.0,0.00036696,2]
[314374301,1708243846162,-500.0,0.00036696,2]
[314374302,1708243846171,-500.0,0.00036696,2]
[314374304,1708243846183,-500.0,0.00036696,2]
[314374305,1708243846193,-500.0,0.00036696,2]
[314374307,1708243846202,-500.0,0.00036696,2]
[314374308,1708243846211,-500.0,0.00036696,2]
[314374310,1708243846221,-570.79754287,0.00036696,2]
[314374312,1708243846230,-573.23709741,0.00036696,2]
[314374313,1708243846240,-500.0,0.00036696,2]
[314374315,1708243846249,-500.0,0.00036696,2]
[314374317,1708243846259,-500.0,0.00036696,2]
[314374319,1708243846269,-500.0,0.00036696,2]
[314374320,1708243846279,-432.76340296,0.00036696,2]
[314374322,1708243846288,-500.1,0.00036696,2]
[314374323,1708243846298,-534.8065956,0.00036696,2]
[314374324,1708243846307,-500.0,0.00036696,2]
[314374325,1708243846315,-554.60977088,0.00036696,2]
[314374326,1708243846325,-562.38092717,0.00036696,2]
[314374327,1708243846334,-1353.47,0.00036696,2]
[314374329,1708243846343,-500.0,0.00036696,2]
[314374331,1708243846353,-500.0,0.00036696,2]
[314374332,1708243846362,-500.0,0.00036696,2]
[314374334,1708243846371,-500.0,0.00036696,2]
[314374336,1708243846380,-178.70871174,0.00036696,2]
[314374337,1708243846389,-500.0,0.00036696,2]
[314374338,1708243846398,-500.0,0.00036696,2]
[314374339,1708243846407,-371.566242,0.00036696,2]
[314374340,1708243955468,1079.5178,0.00024952,14]
[314374341,1708244127076,320.35906319,0.00027,120]
[314374342,1708244165084,355.25169603,0.00024001,2]
[314374343,1708244465149,314.999999,0.00024001,2]
[314374347,1708244518560,-264.73498175,0.0002505,2]
[314374348,1708244798122,-500.0,0.00025051,2]
[314374349,1708244798141,-500.0,0.00025051,2]
[314374350,1708244798160,-150.0,0.00025228,2]
[314374351,1708244798179,-2231.31887284,0.00025229,2]
[314374373,1708245031574,-515.17567662,0.00025225,2]
[314374374,1708245031584,-346.12745114,0.00025229,2]
[314374375,1708245031596,-301.95469334,0.00025229,2]
[314374376,1708245031628,-740.58240107,0.00025229,2]
[314374377,1708245031639,-500.53973003,0.00025229,2]
[314374378,1708245031650,-315.2812933,0.00025229,2]
[314374379,1708245031685,-3400.0,0.00025229,2]
[314374380,1708245031699,-616.61648566,0.00025229,2]
[314374381,1708245031711,-318.3432,0.00025229,2]
[314374382,1708245031743,-1959.11007422,0.00025229,2]
[314374387,1708245031944,-162.00519508,0.00029175,2]
[314374389,1708245031953,-155.0,0.0003,4]
[314374391,1708245031962,-150.0,0.00030699,2]
[314374393,1708245031972,-162.00519508,0.000307,2]
[314374395,1708245031981,-162.00519508,0.00032225,2]
[314374397,1708245031990,-1086.81546544,0.00032582,4]
[314374399,1708245032000,-320.89,0.00032583,2]
[314374401,1708245032010,-499.99,0.00032583,2]
[314374403,1708245032018,-150.0,0.00033283,2]
[314374405,1708245032028,-150.0,0.0003335,2]
[314374407,1708245032037,-162.00519508,0.0003375,2]
[314374409,1708245032047,-1500.0,0.00034,4]
[314374410,1708245032056,-237.86742849,0.00034,2]
[314374411,1708245032065,-1000.0,0.00034469,2]
[314374412,1708245032075,-150.0,0.00034482,2]
[314374413,1708245032084,-445.89690273,0.00034485,2]
[314374414,1708245032151,-588.68309727,0.00034485,2]
[314374415,1708245032160,-258.46,0.00034501,2]
[314374416,1708245032169,-860.13,0.00034504,2]
[314374417,1708245032179,-250.0,0.00034507,2]
[314374418,1708245032188,-250.0,0.00034539,2]
[314374419,1708245032197,-194.74,0.0003455,2]
[314374420,1708245032206,-150.0,0.00034705,2]
[314374421,1708245032215,-150.0,0.00034743,2]
[314374422,1708245032225,-40.18365787,0.00034753,2]
[314374423,1708245032236,-151.09634213,0.00034753,2]
[314374424,1708245032245,-7618.84890125,0.00034844,2]
[314374425,1708245032296,-80992.15109875,0.00034844,2]
[314374426,1708245032305,-320.89,0.00034847,2]
[314374427,1708245032315,-429.08214379,0.00035,4]
[314374428,1708245032324,-1000.0,0.00035,35]
[314374429,1708245032333,-1515.52071915,0.00035036,4]
[314374430,1708245032342,-211.13,0.00035114,2]
[314374431,1708245032351,-150.0,0.00035142,2]
[314374432,1708245032360,-150.0,0.00035162,2]
[314374433,1708245032370,-162.00519508,0.00035275,2]
[314374434,1708245032379,-150.0,0.0003528,2]
[314374435,1708245032388,-211.13,0.00035299,2]
[314374436,1708245032397,-150.0,0.00035346,2]
[314374437,1708245032406,-150.0,0.00035351,2]
[314374438,1708245032415,-150.0,0.00035412,2]
[314374439,1708245032425,-150.0,0.00035439,2]
[314374440,1708245032434,-211.13,0.00035484,2]
[314374441,1708245032443,-150.0,0.00035493,2]
[314374442,1708245032453,-150.0,0.00035522,2]
[314374443,1708245032462,-150.0,0.00035523,2]
[314374444,1708245032472,-1500.0,0.00035573,2]
[314374445,1708245032483,-1000.0,0.000356,2]
[314374446,1708245032495,-150.0,0.00035631,2]
[314374447,1708245032504,-1500.0,0.00035648,2]
[314374448,1708245032514,-211.13,0.00035669,2]
[314374449,1708245032523,-150.0,0.00035719,2]
[314374450,1708245032532,-150.0,0.00035733,2]
[314374451,1708245032541,-150.0,0.00035738,2]
[314374452,1708245032549,-150.0,0.0003579,2]
[314374453,1708245032559,-150.0,0.0003583,2]
[314374454,1708245032568,-150.0,0.00035836,2]
[314374455,1708245032578,-150.0,0.00035846,2]
[314374456,1708245032586,-211.13,0.00035854,2]
[314374457,1708245032595,-150.0,0.00035869,2]
[314374458,1708245032604,-150.0,0.00035888,2]
[314374459,1708245032613,-165.45,0.00035889,2]
[314374460,1708245032622,-150.98626039,0.00035899,2]
[314374461,1708245032631,-1949.94538348,0.000359,2]
[314374462,1708245032641,-150.0,0.00035912,2]
[314374463,1708245032650,-150.0,0.00035947,2]
[314374464,1708245032660,-150.0,0.0003595,2]
[314374465,1708245032670,-1159.47600652,0.00035976,2]
[314374466,1708245032679,-1000.0,0.00036,36]
[314374467,1708245032689,-1227.22076234,0.00036006,2]
[314374468,1708245032698,-150.0,0.00036018,2]
[314374469,1708245032709,-150.0,0.00036032,2]
[314374470,1708245032718,-211.13,0.00036038,2]
[314374471,1708245032728,-150.0,0.00036042,2]
[314374472,1708245032737,-150.0,0.00036066,2]
[314374473,1708245032746,-150.0,0.00036103,2]
[314374474,1708245032755,-194.79552411,0.00036172,7]
[314374475,1708245032765,-992.5274758,0.00036174,2]
[314374476,1708245032775,-194.74,0.00036194,2]
[314374477,1708245032784,-211.13,0.00036223,2]
[314374478,1708245032793,-150.0,0.00036231,2]
[314374479,1708245032802,-150.0,0.00036247,2]
[314374480,1708245032811,-1159.47600652,0.00036253,2]
[314374481,1708245032819,-150.0,0.00036256,2]
[314374482,1708245032829,-197.38904084,0.00036264,2]
[314374483,1708245032839,-500.0,0.0003627,2]
[314374484,1708245032848,-1772.8,0.0003627,2]
[314374485,1708245032858,-183.40505092,0.0003627,2]
[314374486,1708245032867,-500.0,0.0003627,2]
[314374487,1708245032877,-500.0,0.0003627,2]
[314374488,1708245032886,-500.0,0.0003627,2]
[314374489,1708245032895,-500.0,0.0003627,2]
[314374490,1708245032905,-500.0,0.0003627,2]
[314374491,1708245032914,-500.0,0.0003627,2]
[314374492,1708245032923,-500.0,0.0003627,2]
[314374493,1708245032932,-500.0,0.0003627,2]
[314374494,1708245032941,-500.0,0.0003627,2]
[314374495,1708245032950,-500.0,0.0003627,2]
[314374496,1708245032959,-500.0,0.0003627,2]
[314374497,1708245032968,-500.0,0.0003627,2]
[314374498,1708245032977,-500.0,0.0003627,2]
[314374499,1708245032986,-2661.7,0.0003627,2]
[314374500,1708245032995,-500.0,0.0003627,2]
[314374501,1708245033004,-500.0,0.0003627,2]
[314374502,1708245033014,-500.0,0.0003627,2]
[314374503,1708245033023,-500.0,0.0003627,2]
[314374504,1708245033032,-500.0,0.0003627,2]
[314374505,1708245033042,-500.0,0.0003627,2]
[314374506,1708245033051,-500.0,0.0003627,2]
[314374507,1708245033061,-240.15138974,0.0003627,2]
[314374508,1708245033070,-811.23,0.0003627,2]
[314374509,1708245033079,-500.0,0.0003627,2]
[314374510,1708245033088,-634.6209432,0.0003627,2]
[314374511,1708245033098,-500.0,0.0003627,2]
[314374512,1708245033107,-500.0,0.0003627,2]
[314374513,1708245033116,-1823.84,0.0003627,2]
[314374514,1708245033125,-500.0,0.0003627,2]
[314374515,1708245033135,-500.0,0.0003627,2]
[314374516,1708245033144,-8917.52,0.0003627,2]
[314374517,1708245033153,-2359.79,0.0003627,2]
[314374518,1708245033162,-500.0,0.0003627,2]
[314374519,1708245033172,-500.0,0.0003627,2]
[314374520,1708245033182,-500.0,0.0003627,2]
[314374521,1708245033191,-529.82512964,0.0003627,2]
[314374522,1708245033200,-524.15724077,0.0003627,2]
[314374523,1708245033210,-500.0,0.0003627,2]
[314374524,1708245033219,-500.0,0.0003627,2]
[314374525,1708245033228,-500.0,0.0003627,2]
[314374526,1708245033237,-500.0,0.0003627,2]
[314374527,1708245033246,-500.0,0.0003627,2]
[314374528,1708245033256,-500.0,0.0003627,2]
[314374529,1708245033265,-500.0,0.00036271,2]
[314374530,1708245033275,-175.74961008,0.00036271,2]
[314374531,1708245033285,-599.68946288,0.00036271,2]
[314374532,1708245033294,-500.0,0.00036271,2]
[314374533,1708245033303,-500.0,0.00036271,2]
[314374534,1708245033313,-500.0,0.00036271,2]
[314374535,1708245033322,-500.0,0.00036271,2]
[314374536,1708245033331,-500.0,0.00036271,2]
[314374537,1708245033341,-500.0,0.00036271,2]
[314374538,1708245033351,-500.0,0.00036271,2]
[314374539,1708245033360,-500.0,0.00036271,2]
[314374540,1708245033369,-500.0,0.00036271,2]
[314374541,1708245033379,-519.5087692,0.00036271,2]
[314374542,1708245033388,-500.0,0.00036271,2]
[314374543,1708245033398,-500.0,0.00036271,2]
[314374544,1708245033407,-500.0,0.00036271,2]
[314374545,1708245033416,-500.0,0.00036271,2]
[314374546,1708245033425,-500.0,0.00036271,2]
[314374547,1708245033435,-500.0,0.00036271,2]
[314374548,1708245033444,-500.0,0.00036271,2]
[314374549,1708245033453,-500.0,0.00036271,7]
[314374550,1708245033463,-500.0,0.00036271,2]
[314374551,1708245033472,-500.0,0.00036271,2]
[314374552,1708245033481,-500.0,0.00036271,2]
[314374553,1708245033493,-500.0,0.00036271,2]
[314374554,1708245033502,-500.0,0.00036271,2]
[314374555,1708245033511,-500.0,0.00036271,2]
[314374556,1708245033520,-500.0,0.00036271,2]
[314374557,1708245033530,-500.0,0.00036271,2]
[314374558,1708245033539,-500.0,0.00036271,2]
[314374559,1708245033549,-500.0,0.00036271,2]
[314374560,1708245033558,-500.0,0.00036271,2]
[314374561,1708245033568,-500.0,0.00036271,2]
[314374562,1708245033577,-161.02204642,0.00036271,2]
[314374563,1708245033587,-500.0,0.00036271,2]
[314374564,1708245033596,-500.0,0.00036271,2]
[314374565,1708245033605,-500.0,0.00036271,2]
[314374566,1708245033615,-500.0,0.00036271,2]
[314374567,1708245033624,-500.0,0.00036271,2]
[314374568,1708245033633,-500.0,0.00036271,2]
[314374569,1708245033642,-500.0,0.00036271,2]
[314374570,1708245033651,-500.0,0.00036271,2]
[314374571,1708245033660,-500.0,0.00036271,2]
[314374572,1708245033670,-500.0,0.00036271,2]
[314374573,1708245033679,-500.0,0.00036271,2]
[314374574,1708245033689,-500.0,0.00036271,2]
[314374575,1708245033698,-638.84145949,0.00036271,2]
[314374576,1708245033707,-500.0,0.00036271,2]
[314374577,1708245033717,-500.0,0.00036271,2]
[314374578,1708245033726,-500.0,0.00036271,2]
[314374579,1708245033736,-500.0,0.00036271,2]
[314374580,1708245033745,-500.0,0.00036271,2]
[314374581,1708245033754,-150.0,0.00036271,2]
[314374582,1708245033764,-500.0,0.00036271,2]
[314374583,1708245033773,-500.0,0.00036271,2]
[314374584,1708245033782,-500.0,0.00036271,2]
[314374585,1708245033791,-500.0,0.00036271,2]
[314374586,1708245033800,-500.0,0.00036271,2]
[314374587,1708245033809,-500.0,0.00036271,2]
[314374588,1708245033818,-500.0,0.00036271,2]
[314374589,1708245033827,-500.0,0.00036271,2]
[314374590,1708245033836,-500.0,0.00036271,2]
[314374591,1708245033845,-500.0,0.00036271,2]
[314374592,1708245033855,-615.30824346,0.00036271,2]
[314374593,1708245033864,-500.0,0.00036271,2]
[314374594,1708245033873,-521.44010232,0.00036271,2]
[314374595,1708245033882,-500.0,0.00036271,2]
[314374596,1708245033891,-500.0,0.00036271,2]
[314374597,1708245033901,-576.65335061,0.00036271,2]
[314374598,1708245033910,-544.73127283,0.00036271,2]
[314374599,1708245033919,-500.0,0.00036271,2]
[314374600,1708245033929,-500.0,0.00036271,2]
[314374601,1708245033938,-579.64948002,0.00036271,2]
[314374602,1708245033947,-500.0,0.00036271,2]
[314374603,1708245033956,-500.0,0.00036271,2]
[314374604,1708245033966,-500.0,0.00036271,2]
[314374605,1708245033975,-500.0,0.00036271,2]
[314374606,1708245033985,-500.0,0.00036271,2]
[314374607,1708245033995,-500.0,0.00036271,2]
[314374608,1708245034004,-500.0,0.00036271,2]
[314374609,1708245034014,-500.0,0.00036271,2]
[314374610,1708245034023,-500.0,0.00036271,2]
[314374611,1708245034032,-500.0,0.00036271,2]
[314374612,1708245034042,-500.0,0.00036271,2]
[314374613,1708245034052,-500.0,0.00036271,2]
[314374614,1708245034061,-500.0,0.00036271,2]
[314374615,1708245034070,-500.0,0.00036271,2]
[314374616,1708245034080,-500.0,0.00036271,2]
[314374617,1708245034089,-500.0,0.00036271,2]
[314374618,1708245034098,-500.0,0.00036271,2]
[314374619,1708245034107,-500.0,0.00036271,2]
[314374620,1708245034117,-500.0,0.00036271,2]
[314374621,1708245034127,-500.0,0.00036271,2]